fUSD/lending_fUSD_20260607
["ID","MTS","AMOUNT","RATE_DAILY","PERIOD"]
[424378685,1780823432000,-151.0,9.043e-05,2]
[424378684,1780823432000,-166.66,9.004e-05,2]
[424378688,1780823432000,-150.0,9.548e-05,2]
[424378691,1780823432000,-75251.436003,9.549e-05,2]
[424378672,1780823432000,-194.28,8.677e-05,2]
[424378692,1780823432000,-2599.070708,9.549e-05,2]
[424378690,1780823432000,-51987.26779312,9.549e-05,2]
[424378689,1780823432000,-751526.61754246,9.549e-05,2]
[424378681,1780823432000,-575.88046834,8.949e-05,2]
[424378687,1780823432000,-194.42975546,9.34e-05,2]
[424378710,1780823436000,172.0,0.00029316,120]
[424378718,1780823440000,-62587.70852238,9.549e-05,2]
[424378719,1780823441000,-255.62876785,9.549e-05,2]
[424378730,1780823443000,-317.23126945,9.549e-05,2]
[424378731,1780823443000,-19401.05599919,9.549e-05,2]
[424378776,1780823446000,-302.0,9.549e-05,2]
[424378777,1780823446000,-1394.29459015,9.549e-05,2]
[424378781,1780823449000,350.0,9.836e-05,3]
[424378782,1780823519000,228.71,0.00030136,120]
[424378783,1780823538000,152.0,9.736e-05,7]
[424378784,1780823680000,295.0,9.882e-05,5]
[424378785,1780823704000,350.0,9.836e-05,3]
[424378786,1780823708000,225.0,0.00029166,120]
[424378787,1780823730000,172.0,0.00029316,120]
[424378788,1780823802000,370.42560315,0.00030136,120]
[424378789,1780823967000,254.69678134,0.0003,120]
[424378790,1780824000000,202.40611876,0.00017795,120]
[424378791,1780824007000,175.0,0.00029228,120]
[424378792,1780824065000,204.2,0.00030137,120]
[424378793,1780824066000,606.16934228,0.0003,120]
[424378794,1780824068000,410.2295839,0.0003,120]
[424378795,1780824082000,218.53806343,0.00028,120]
[424378796,1780824088000,484.69751399,0.00028297,120]
[424378799,1780824109000,500.0,0.00030137,120]
[424378800,1780824124000,454.96900811,0.0003013,120]
[424378801,1780824130000,609.37851119,0.00030135,120]
[424378802,1780824131000,166.0,0.0003,120]
[424378803,1780824133000,225.5054025,0.00025,120]
[424378807,1780824134000,167.6866891,0.0002,120]
[424378806,1780824134000,170.65561385,0.0003,120]
[424378804,1780824134000,893.66531779,0.0003,120]
[424378805,1780824134000,331.50460088,0.0003013,120]
[424378808,1780824135000,168.5751401,0.0003,120]
[424378809,1780824136000,490.74705538,0.0002,120]
[424378810,1780824137000,370.30114954,0.000226,120]
[424378811,1780824138000,161.34231946,0.0003,120]
[424378812,1780824141000,619.21304402,0.00027,120]
[424378813,1780824146000,174.19026886,0.0003,120]
[424378814,1780824147000,193.51086504,0.00028,120]
[424378815,1780824194000,288.0,0.0003,120]
[424378816,1780824287000,519.0,9.882e-05,5]
[424378817,1780824307000,199.0,0.00029063,120]
[424378819,1780824367000,465.44,0.00030137,120]
[424378820,1780824371000,150.0,0.00011233,120]
[424378822,1780824418000,-177.31712196,7.5e-05,2]
[424378825,1780824480000,1200.028989,0.00030136,120]
[424378826,1780824505000,4418.43046904,0.00030136,120]
[424378829,1780824541000,2000.0,0.00030136,120]
[424378871,1780824598000,555.169,0.00029967,120]
[424378872,1780824600000,150.0,0.00017795,120]
[424378873,1780824601000,153.60917814,0.00017795,120]
[424378874,1780824608000,170.0,0.00029448,120]
[424378897,1780824632000,-183.15629394,8.231e-05,2]
[424378898,1780824632000,-200.0,8.249e-05,2]
[424378896,1780824632000,-181.33365729,8.231e-05,2]
[424378901,1780824632000,-250.0,8.25e-05,2]
[424378893,1780824632000,-413.28513762,8e-05,2]
[424378899,1780824632000,-4000.0,8.25e-05,2]
[424378903,1780824632000,-193.0,8.25e-05,2]
[424378894,1780824632000,-300.0,8.05e-05,2]
[424378900,1780824632000,-300.37659226,8.25e-05,2]
[424378902,1780824632000,-221.71042592,8.25e-05,2]
[424378886,1780824632000,-300.0,7.6e-05,2]
[424378891,1780824632000,-40.70287032,7.8e-05,2]
[424378884,1780824632000,-94.15701185,7.55e-05,2]
[424378882,1780824632000,-122.68287804,7.5e-05,2]
[424378888,1780824632000,-300.0,7.7e-05,2]
[424378885,1780824632000,-464.03540603,7.55e-05,2]
[424378889,1780824632000,-250.0,7.7e-05,2]
[424378887,1780824632000,-162.0,7.624e-05,2]
[424378883,1780824632000,-155.84298815,7.55e-05,2]
[424378890,1780824632000,-259.29712968,7.8e-05,2]
[424378892,1780824632000,-300.0,7.9e-05,2]
[424378905,1780824632000,-185.04121324,8.649e-05,2]
[424378895,1780824632000,-300.0,8.1e-05,2]
[424378904,1780824632000,-9216.68,8.527e-05,2]
[424378906,1780824632000,-180.46929902,8.649e-05,2]
[424378929,1780824632000,-467.29685263,9.449e-05,2]
[424378924,1780824632000,-171299.46964166,9.449e-05,2]
[424378923,1780824632000,-150.0,9.448e-05,2]
[424378926,1780824632000,-7229.02546749,9.449e-05,2]
[424378921,1780824632000,-70.21395967,9.448e-05,2]
[424378917,1780824632000,-2500.0,9.349e-05,2]
[424378920,1780824632000,-2501.769,9.448e-05,2]
[424378919,1780824632000,-501.0,9.397e-05,2]
[424378927,1780824632000,-316.11449079,9.449e-05,2]
[424378922,1780824632000,-307.87504033,9.448e-05,2]
[424378910,1780824632000,-150.0,9.03e-05,2]
[424378908,1780824632000,-1285.87,8.959e-05,2]
[424378909,1780824632000,-1940.48,8.959e-05,2]
[424378916,1780824632000,-484106.8417,9.348e-05,2]
[424378911,1780824632000,-3773.95,9.031e-05,2]
[424378912,1780824632000,-4018.14360044,9.043e-05,2]
[424378913,1780824632000,-372.48078518,9.043e-05,2]
[424378907,1780824632000,-939.36,8.959e-05,2]
[424378914,1780824632000,-155.09,9.209e-05,2]
[424378915,1780824632000,-166.67,9.228e-05,2]
[424378928,1780824632000,-1075.43,9.449e-05,2]
[424378950,1780824638000,-4206.35391788,9.449e-05,2]
[424378953,1780824638000,-16723.1234844,9.449e-05,2]
[424378951,1780824638000,-299.99,9.449e-05,2]
[424378952,1780824638000,-12458.89826465,9.449e-05,2]
[424379217,1780824640000,-219.67845846,9.588e-05,2]
[424379202,1780824640000,-500.0,9.449e-05,2]
[424379200,1780824640000,-1285924.2978805,9.449e-05,2]
[424379207,1780824640000,-23157.4165357,9.588e-05,2]
[424379204,1780824640000,-2000.0,9.549e-05,2]
[424379209,1780824640000,-752452.5562232,9.588e-05,2]
[424379211,1780824640000,-16838.7975999,9.588e-05,2]
[424379213,1780824640000,-93397.2374883,9.588e-05,2]
[424379226,1780824640000,-166.67,9.736e-05,2]
[424379219,1780824640000,-8009.0,9.616e-05,2]
[424379224,1780824640000,-500.0,9.723e-05,2]
[424379222,1780824640000,-151.0,9.646e-05,2]
[424379228,1780824640000,-166.66,9.747e-05,2]
[424379234,1780824640000,-163.0,9.76e-05,2]
[424379232,1780824640000,-163.0,9.76e-05,2]
[424379230,1780824640000,-163.0,9.76e-05,2]
[424379216,1780824640000,-182.19942894,9.588e-05,2]
[424379298,1780824641000,-250.0,0.0001002,2]
[424379312,1780824641000,-939.36,0.00010079,2]
[424379315,1780824641000,-160.0,0.00010214,2]
[424379322,1780824641000,-250.41794984,0.0001026,2]
[424379317,1780824641000,-166.67,0.00010243,2]
[424379304,1780824641000,-167.473,0.0001002,2]
[424379311,1780824641000,-204.75282101,0.00010049,2]
[424379309,1780824641000,-542.12,0.00010027,2]
[424379306,1780824641000,-189.0,0.0001002,2]
[424379313,1780824641000,-1739.70456,0.00010125,2]
[424379300,1780824641000,-195.253,0.0001002,2]
[424379302,1780824641000,-250.0,0.0001002,2]
[424379320,1780824641000,-245.0,0.00010252,5]
[424379332,1780824641000,-1777.0,0.00010301,2]
[424379326,1780824641000,-500.0,0.00010271,2]
[424379328,1780824641000,-542.12,0.00010278,2]
[424379330,1780824641000,-185.0,0.00010301,2]
[424379334,1780824641000,-500.67735354,0.0001047,2]
[424379341,1780824641000,-542.12,0.00010529,2]
[424379343,1780824641000,-163.0,0.0001054,2]
[424379336,1780824641000,-500.0,0.0001047,2]
[424379345,1780824641000,-500.0,0.00010545,2]
[424379347,1780824641000,-208.47876553,0.00010548,3]
[424379349,1780824641000,-152.0,0.00010549,2]
[424379351,1780824641000,-151.0,0.00010549,2]
[424379353,1780824641000,-151.0,0.00010549,2]
[424379324,1780824641000,-429.23403033,0.0001026,2]
[424379293,1780824641000,-167.537,0.0001002,2]
[424379236,1780824641000,-207.39553822,9.806e-05,2]
[424379289,1780824641000,-247.741,0.0001002,2]
[424379238,1780824641000,-382.0,9.858e-05,2]
[424379241,1780824641000,-1274.0,9.858e-05,2]
[424379243,1780824641000,-419.0,9.858e-05,2]
[424379247,1780824641000,-9589.83,9.879e-05,2]
[424379245,1780824641000,-933.0,9.858e-05,2]
[424379249,1780824641000,-440.0,9.918e-05,2]
[424379355,1780824641000,-151.0,0.00010549,2]
[424379252,1780824641000,-255.0,9.933e-05,2]
[424379266,1780824641000,-2000.0,0.0001,2]
[424379264,1780824641000,-2000.0,0.0001,2]
[424379258,1780824641000,-4125.33871126,0.0001,2]
[424379271,1780824641000,-2000.0,0.0001,2]
[424379295,1780824641000,-250.0,0.0001002,2]
[424379256,1780824641000,-151.0,0.0001,2]
[424379253,1780824641000,-500.0,9.997e-05,2]
[424379273,1780824641000,-2000.0,0.0001,2]
[424379262,1780824641000,-2000.0,0.0001,2]
[424379260,1780824641000,-158.5910454,0.0001,2]
[424379275,1780824641000,-369.45828506,0.0001,2]
[424379281,1780824641000,-220.0,0.0001002,2]
[424379277,1780824641000,-200.0,0.0001002,2]
[424379287,1780824641000,-250.0,0.0001002,2]
[424379279,1780824641000,-150.0,0.0001002,2]
[424379285,1780824641000,-208.672,0.0001002,2]
[424379283,1780824641000,-250.0,0.0001002,2]
[424379291,1780824641000,-242.103,0.0001002,2]
[424379268,1780824641000,-2000.0,0.0001,2]
[424379359,1780824641000,-178.435806,0.00010658,2]
[424379339,1780824641000,-166.66,0.0001049,2]
[424379361,1780824641000,-20259.34127718,0.00010658,2]
[424379428,1780824641000,-500.0,0.00010958,2]
[424379430,1780824641000,-500.0,0.00010958,2]
[424379436,1780824641000,-500.0,0.00010958,2]
[424379434,1780824641000,-500.0,0.00010958,2]
[424379432,1780824641000,-500.0,0.00010958,2]
[424379438,1780824641000,-500.0,0.00010958,2]
[424379440,1780824641000,-200.0,0.00010959,2]
[424379442,1780824641000,-500.0,0.00010969,2]
[424379443,1780824641000,-500.0,0.0001097,2]
[424379444,1780824641000,-160.0,0.00010986,2]
[424379445,1780824641000,-618.790019,0.00010986,2]
[424379447,1780824641000,-160.0,0.00010986,2]
[424379449,1780824641000,-1512.073612,0.00010986,2]
[424379452,1780824641000,-479.86,0.00010989,2]
[424379451,1780824641000,-2864.147225,0.00010986,2]
[424379454,1780824641000,-150.0,0.00011,2]
[424379456,1780824641000,-150.0,0.00011,2]
[424379466,1780824641000,-213.66,0.00011,2]
[424379462,1780824641000,-589.85,0.00011,2]
[424379468,1780824641000,-232.28,0.00011,2]
[424379458,1780824641000,-150.0,0.00011,2]
[424379460,1780824641000,-600.12,0.00011,2]
[424379464,1780824641000,-383.38,0.00011,2]
[424379470,1780824641000,-249.14,0.00011,2]
[424379472,1780824641000,-152.77,0.00011,2]
[424379474,1780824641000,-259.48,0.00011,2]
[424379357,1780824641000,-7760.53890847,0.00010658,2]
[424379425,1780824641000,-500.0,0.00010958,2]
[424379414,1780824641000,-500.0,0.00010958,2]
[424379446,1780824641000,-1077.580038,0.00010986,2]
[424379423,1780824641000,-500.0,0.00010958,2]
[424379419,1780824641000,-500.0,0.00010958,2]
[424379364,1780824641000,-500.0,0.0001067,2]
[424379370,1780824641000,-166.67,0.00010751,2]
[424379368,1780824641000,-190.36262879,0.000107,2]
[424379374,1780824641000,-152.0,0.00010815,2]
[424379372,1780824641000,-542.12,0.00010779,2]
[424379376,1780824641000,-500.0,0.00010819,2]
[424379378,1780824641000,-160.0,0.00010877,2]
[424379380,1780824641000,-532.088523,0.00010877,2]
[424379382,1780824641000,-904.177046,0.00010877,2]
[424379386,1780824641000,-539.493428,0.00010877,2]
[424379393,1780824641000,-160.0,0.00010931,2]
[424379395,1780824641000,-561.204374,0.00010931,2]
[424379366,1780824641000,-65012.49452601,0.000107,2]
[424379397,1780824641000,-962.408748,0.00010931,2]
[424379389,1780824641000,-918.986856,0.00010877,2]
[424379407,1780824641000,-500.0,0.00010958,2]
[424379416,1780824641000,-500.0,0.00010958,2]
[424379421,1780824641000,-500.0,0.00010958,2]
[424379409,1780824641000,-500.0,0.00010958,3]
[424379405,1780824641000,-281.56008245,0.00010954,2]
[424379412,1780824641000,-500.0,0.00010958,4]
[424379399,1780824641000,-160.0,0.00010931,2]
[424379401,1780824641000,-834.252099,0.00010931,2]
[424379391,1780824641000,-433.0,0.00010926,2]
[424379384,1780824641000,-160.0,0.00010877,2]
[424379403,1780824641000,-1508.504199,0.00010931,2]
[424379542,1780824642000,-151.0,0.00011369,2]
[424379563,1780824642000,-1061.225932,0.00011478,2]
[424379559,1780824642000,-735.672856,0.00011421,2]
[424379556,1780824642000,-898.937886,0.00011421,2]
[424379544,1780824642000,-500.0,0.0001137,2]
[424379554,1780824642000,-725.575258,0.00011421,2]
[424379548,1780824642000,-300.0,0.00011397,2]
[424379550,1780824642000,-161.62,0.00011408,2]
[424379546,1780824642000,-307.27879108,0.00011397,2]
[424379536,1780824642000,-939.36,0.00011199,2]
[424379567,1780824642000,-1137.616499,0.00011478,2]
[424379553,1780824642000,-731.538261,0.00011421,2]
[424379565,1780824642000,-765.278691,0.00011478,2]
[424379583,1780824642000,-160.8907078,0.0001181,2]
[424379561,1780824642000,-1017.075612,0.00011478,2]
[424379571,1780824642000,-1374.612375,0.00011535,2]
[424379573,1780824642000,-334.230615,0.00011535,2]
[424379582,1780824642000,-6396.6126704,0.00011761,2]
[424379586,1780824642000,-155.4453539,0.0001181,2]
[424379588,1780824642000,-150.0,0.0001181,2]
[424379580,1780824642000,-200.0,0.00011673,2]
[424379576,1780824642000,-2143.060458,0.00011535,2]
[424379578,1780824642000,-500.0,0.00011641,2]
[424379594,1780824642000,-151.0,0.00012,2]
[424379590,1780824642000,-168.20361086,0.00011842,2]
[424379592,1780824642000,-378.93631103,0.00011915,2]
[424379540,1780824642000,-500.0,0.00011367,2]
[424379569,1780824642000,-562.536381,0.00011535,2]
[424379538,1780824642000,-150.0,0.00011233,2]
[424379484,1780824642000,-157.4850494,0.00011015,2]
[424379530,1780824642000,-6396.6126704,0.00011099,2]
[424379596,1780824642000,-151.0,0.00012,2]
[424379486,1780824642000,-150.02,0.00011022,2]
[424379476,1780824642000,-288.72,0.00011,2]
[424379478,1780824642000,-196.72,0.00011,2]
[424379480,1780824642000,-556.11,0.00011,2]
[424379488,1780824642000,-428.16,0.00011022,2]
[424379482,1780824642000,-503.12,0.00011,2]
[424379490,1780824642000,-542.12,0.0001103,2]
[424379494,1780824642000,-718.08,0.00011033,2]
[424379492,1780824642000,-1503.66,0.00011033,2]
[424379496,1780824642000,-2000.0,0.00011043,2]
[424379498,1780824642000,-1299.63,0.00011043,2]
[424379500,1780824642000,-187.06,0.00011043,2]
[424379534,1780824642000,-500.0,0.0001117,2]
[424379504,1780824642000,-300.0,0.00011098,2]
[424379506,1780824642000,-300.0,0.00011098,2]
[424379508,1780824642000,-300.0,0.00011098,2]
[424379510,1780824642000,-300.0,0.00011098,2]
[424379516,1780824642000,-300.0,0.00011098,2]
[424379512,1780824642000,-300.0,0.00011098,2]
[424379514,1780824642000,-300.0,0.00011098,2]
[424379518,1780824642000,-300.0,0.00011098,2]
[424379520,1780824642000,-300.0,0.00011098,2]
[424379522,1780824642000,-300.0,0.00011098,2]
[424379526,1780824642000,-6396.61267046,0.00011099,2]
[424379524,1780824642000,-300.0,0.00011098,2]
[424379528,1780824642000,-6396.6126704,0.00011099,2]
[424379532,1780824642000,-6396.6126704,0.00011133,2]
[424379502,1780824642000,-500.0,0.00011093,2]
[424379609,1780824642000,-630.08,0.00012055,2]
[424379695,1780824642000,-152.53295236,0.00012664,14]
[424379603,1780824642000,-2000.0,0.00012,2]
[424379669,1780824642000,-265.296613,0.00012571,2]
[424379667,1780824642000,-551.837485,0.00012571,2]
[424379671,1780824642000,-394.373719,0.00012571,2]
[424379672,1780824642000,-640.0,0.00012605,2]
[424379683,1780824642000,-292.518918,0.00012634,2]
[424379685,1780824642000,-714.798435,0.00012634,2]
[424379687,1780824642000,-869.723857,0.00012634,2]
[424379689,1780824642000,-173.79992,0.00012634,2]
[424379679,1780824642000,-348.0,0.00012605,2]
[424379681,1780824642000,-443.0,0.00012605,2]
[424379691,1780824642000,-742.927625,0.00012634,2]
[424379677,1780824642000,-687.0,0.00012605,2]
[424379693,1780824642000,-152.53295237,0.00012664,7]
[424379697,1780824642000,-300.0,0.00012857,2]
[424379699,1780824642000,-300.0,0.00012857,2]
[424379703,1780824642000,-382.0,0.00012858,2]
[424379701,1780824642000,-413.05991736,0.00012857,2]
[424379705,1780824642000,-1274.0,0.00012858,2]
[424379709,1780824642000,-933.0,0.00012858,2]
[424379711,1780824642000,-169.68,0.0001287,2]
[424379713,1780824642000,-169.68,0.0001287,2]
[424379707,1780824642000,-419.0,0.00012858,2]
[424379715,1780824642000,-169.68,0.0001287,2]
[424379717,1780824642000,-2356.86657819,0.00013,2]
[424379721,1780824642000,-6396.6126704,0.00013016,2]
[424379597,1780824642000,-151.0,0.00012,2]
[424379719,1780824642000,-151.0,0.00013013,2]
[424379666,1780824642000,-394.242812,0.00012571,2]
[424379664,1780824642000,-528.879318,0.00012571,2]
[424379675,1780824642000,-623.0,0.00012605,2]
[424379658,1780824642000,-467.447701,0.00012509,2]
[424379605,1780824642000,-150.13071065,0.00012,2]
[424379656,1780824642000,-259.207137,0.00012509,2]
[424379612,1780824642000,-158.59104539,0.00012144,2]
[424379618,1780824642000,-152.53295236,0.00012295,14]
[424379613,1780824642000,-182.19942894,0.00012194,2]
[424379616,1780824642000,-152.53295237,0.00012295,7]
[424379602,1780824642000,-599.22496792,0.00012,2]
[424379607,1780824642000,-298.0,0.00012019,2]
[424379620,1780824642000,-939.36,0.00012319,2]
[424379624,1780824642000,-151.0,0.00012497,2]
[424379626,1780824642000,-500.0,0.00012499,2]
[424379634,1780824642000,-300.0,0.00012499,2]
[424379628,1780824642000,-300.0,0.00012499,2]
[424379630,1780824642000,-300.0,0.00012499,2]
[424379622,1780824642000,-6396.6126704,0.00012388,2]
[424379632,1780824642000,-300.0,0.00012499,2]
[424379660,1780824642000,-382.549885,0.00012509,2]
[424379654,1780824642000,-377.299134,0.00012508,2]
[424379650,1780824642000,-998.96138125,0.000125,2]
[424379652,1780824642000,-380.399896,0.00012508,2]
[424379644,1780824642000,-10000.0,0.000125,2]
[424379648,1780824642000,-10000.0,0.000125,2]
[424379662,1780824642000,-1285.87,0.00012543,2]
[424379646,1780824642000,-549.82467016,0.000125,2]
[424379636,1780824642000,-10000.0,0.000125,2]
[424379642,1780824642000,-630.91760467,0.000125,2]
[424379599,1780824642000,-151.0,0.00012,2]
[424379640,1780824642000,-5479.00127615,0.000125,2]
[424379638,1780824642000,-15000.0,0.000125,2]
[424379801,1780824643000,-150.0,0.00013509,2]
[424379793,1780824643000,-300.0,0.00013492,2]
[424379794,1780824643000,-300.0,0.00013492,2]
[424379803,1780824643000,-161.58263054,0.00013518,2]
[424379816,1780824643000,-548.29484665,0.00013533,2]
[424379789,1780824643000,-150.0,0.00013488,2]
[424379806,1780824643000,-548.29484665,0.00013518,2]
[424379795,1780824643000,-10000.0,0.00013493,2]
[424379808,1780824643000,-150.0,0.00013519,2]
[424379818,1780824643000,-329.711876,0.00013538,2]
[424379810,1780824643000,-150.0,0.00013523,2]
[424379812,1780824643000,-150.0,0.0001353,2]
[424379814,1780824643000,-161.58263054,0.00013533,2]
[424379791,1780824643000,-548.29484665,0.00013488,2]
[424379841,1780824643000,-161.58263054,0.00013578,2]
[424379822,1780824643000,-161.58263054,0.00013548,2]
[424379825,1780824643000,-150.0,0.0001355,2]
[424379831,1780824643000,-150.0,0.00013558,2]
[424379827,1780824643000,-150.0,0.0001355,2]
[424379824,1780824643000,-548.29484665,0.00013548,2]
[424379829,1780824643000,-150.0,0.00013551,2]
[424379833,1780824643000,-161.58263054,0.00013563,2]
[424379835,1780824643000,-548.29484665,0.00013563,2]
[424379837,1780824643000,-150.0,0.00013572,2]
[424379839,1780824643000,-150.0,0.00013576,2]
[424379843,1780824643000,-548.29484665,0.00013578,2]
[424379845,1780824643000,-150.0,0.00013581,2]
[424379799,1780824643000,-150.0,0.00013505,2]
[424379820,1780824643000,-150.0,0.00013541,2]
[424379798,1780824643000,-548.29484665,0.00013503,2]
[424379726,1780824643000,-150.0,0.0001302,2]
[424379787,1780824643000,-150.0,0.00013488,2]
[424379854,1780824643000,-548.29484665,0.00013594,2]
[424379724,1780824643000,-150.0,0.0001302,2]
[424379733,1780824643000,-150.0,0.0001302,2]
[424379731,1780824643000,-150.0,0.0001302,2]
[424379730,1780824643000,-150.0,0.0001302,2]
[424379727,1780824643000,-150.0,0.0001302,2]
[424379746,1780824643000,-150.0,0.0001302,2]
[424379740,1780824643000,-150.0,0.0001302,2]
[424379748,1780824643000,-152.53295237,0.00013033,7]
[424379737,1780824643000,-150.0,0.0001302,2]
[424379736,1780824643000,-150.0,0.0001302,2]
[424379741,1780824643000,-150.0,0.0001302,2]
[424379744,1780824643000,-150.0,0.0001302,2]
[424379750,1780824643000,-152.53295236,0.00013033,14]
[424379752,1780824643000,-1030.0,0.00013318,2]
[424379754,1780824643000,-1500.0,0.00013318,2]
[424379765,1780824643000,-150.17745732,0.00013488,2]
[424379767,1780824643000,-150.0,0.00013488,2]
[424379771,1780824643000,-150.0,0.00013488,2]
[424379769,1780824643000,-150.0,0.00013488,2]
[424379773,1780824643000,-150.0,0.00013488,2]
[424379762,1780824643000,-231.084905,0.00013471,2]
[424379756,1780824643000,-416.001784,0.00013404,2]
[424379759,1780824643000,-939.36,0.00013439,2]
[424379776,1780824643000,-161.58263054,0.00013488,2]
[424379782,1780824643000,-150.05273485,0.00013488,2]
[424379779,1780824643000,-150.0,0.00013488,2]
[424379784,1780824643000,-150.0840863,0.00013488,2]
[424379796,1780824643000,-1000.0,0.000135,2]
[424379797,1780824643000,-161.58263054,0.00013503,2]
[424379852,1780824643000,-161.58263054,0.00013594,2]
[424379949,1780824643000,-500.0,0.00013698,2]
[424379850,1780824643000,-150.0,0.00013593,2]
[424379923,1780824643000,-150.0,0.00013682,2]
[424379925,1780824643000,-161.58263054,0.00013684,2]
[424379929,1780824643000,-161.62,0.0001369,2]
[424379927,1780824643000,-548.29484665,0.00013684,2]
[424379933,1780824643000,-300.0,0.00013697,2]
[424379931,1780824643000,-300.0,0.00013697,2]
[424379935,1780824643000,-500.0,0.00013697,2]
[424379937,1780824643000,-300.0,0.00013698,2]
[424379951,1780824643000,-500.0,0.00013698,2]
[424379947,1780824643000,-500.0,0.00013698,2]
[424379939,1780824643000,-300.0,0.00013698,2]
[424379945,1780824643000,-500.0,0.00013698,2]
[424379943,1780824643000,-500.0,0.00013698,2]
[424379915,1780824643000,-150.0,0.00013675,2]
[424379955,1780824643000,-500.0,0.00013698,2]
[424379957,1780824643000,-500.0,0.00013698,2]
[424379959,1780824643000,-500.0,0.00013698,2]
[424379961,1780824643000,-500.0,0.00013698,2]
[424379965,1780824643000,-500.0,0.00013698,2]
[424379967,1780824643000,-500.0,0.00013698,2]
[424379968,1780824643000,-500.0,0.00013698,2]
[424379962,1780824643000,-500.0,0.00013698,2]
[424379971,1780824643000,-500.0,0.00013698,2]
[424379973,1780824643000,-500.0,0.00013698,2]
[424379975,1780824643000,-500.0,0.00013698,2]
[424379977,1780824643000,-500.0,0.00013698,2]
[424379979,1780824643000,-500.0,0.00013698,2]
[424379847,1780824643000,-150.0,0.00013593,2]
[424379941,1780824643000,-500.0,0.00013698,2]
[424379913,1780824643000,-548.29484665,0.00013669,2]
[424379953,1780824643000,-500.0,0.00013698,2]
[424379919,1780824643000,-150.0,0.00013675,2]
[424379921,1780824643000,-150.0,0.00013678,2]
[424379860,1780824643000,-687.0,0.00013605,2]
[424379862,1780824643000,-348.0,0.00013605,2]
[424379876,1780824643000,-150.0,0.00013611,2]
[424379867,1780824643000,-300.0,0.00013607,2]
[424379864,1780824643000,-443.0,0.00013605,2]
[424379878,1780824643000,-150.0,0.00013613,2]
[424379858,1780824643000,-623.0,0.00013605,2]
[424379868,1780824643000,-300.0,0.00013607,2]
[424379874,1780824643000,-548.29484665,0.00013609,2]
[424379870,1780824643000,-9589.83,0.00013608,2]
[424379880,1780824643000,-150.0,0.00013613,2]
[424379872,1780824643000,-161.58263054,0.00013609,2]
[424379882,1780824643000,-150.0,0.00013614,2]
[424379888,1780824643000,-150.0,0.00013629,2]
[424379856,1780824643000,-640.0,0.00013605,2]
[424379911,1780824643000,-161.58263054,0.00013669,2]
[424379917,1780824643000,-150.0,0.00013675,2]
[424379905,1780824643000,-548.29484665,0.00013654,2]
[424379907,1780824643000,-150.0,0.00013657,2]
[424379886,1780824643000,-548.29484665,0.00013624,2]
[424379900,1780824643000,-150.0,0.00013646,2]
[424379898,1780824643000,-6396.6126704,0.00013644,2]
[424379909,1780824643000,-150.0,0.00013664,2]
[424379892,1780824643000,-161.58263054,0.00013639,2]
[424379896,1780824643000,-150.0,0.00013644,2]
[424379890,1780824643000,-150.0,0.00013635,2]
[424379894,1780824643000,-548.29484665,0.00013639,2]
[424379884,1780824643000,-161.58263054,0.00013624,2]
[424379903,1780824643000,-161.58263054,0.00013654,2]
[424380068,1780824644000,-500.0,0.00013698,2]
[424380065,1780824644000,-500.0,0.00013698,2]
[424380055,1780824644000,-500.0,0.00013698,2]